bitfinex-derivatives/quotes_BTCF0:USTF0_20241224
["timestamp","ask_amount","ask_price","bid_price","bid_amount"]
[1735074177107,0.054318,97504.0,97503.0,0.42603956]
[1735074177308,0.003,97504.0,97503.0,0.42603956]
[1735074180609,0.003,97504.0,97503.0,0.42503956]
[1735074181910,0.003,97504.0,97503.0,0.60865321]
[1735074182111,0.051318,97505.0,97504.0,0.051318]
[1735074183610,0.053318,97505.0,97504.0,0.051318]
[1735074186416,0.058318,97505.0,97504.0,0.051318]
[1735074186913,0.053318,97505.0,97504.0,0.051318]
[1735074187215,0.058318,97505.0,97504.0,0.051318]
[1735074187408,0.056318,97505.0,97504.0,0.051318]
[1735074187710,0.058318,97505.0,97504.0,0.051318]
[1735074187910,0.007,97505.0,97504.0,0.051318]
[1735074189410,0.058317,97505.0,97503.0,0.37452156]
[1735074189717,0.051322,97497.0,97496.0,0.18361365]
[1735074191221,0.2044829,97497.0,97489.0,0.0161375]
[1735074191405,0.2044829,97497.0,97484.0,0.3448]
[1735074191605,0.051328,97485.0,97484.0,0.3448]
[1735074194416,0.053328,97485.0,97484.0,0.36133066]
[1735074196512,0.053328,97485.0,97484.0,0.01653066]
[1735074196714,0.002,97485.0,97479.0,0.36233871]
[1735074196915,0.05133,97481.0,97479.0,0.36233871]
[1735074197115,0.05133,97481.0,97480.0,0.0529]
[1735074198109,0.05133,97481.0,97480.0,0.06945988]
[1735074204729,0.05133,97481.0,97480.0,0.01655988]
[1735074204921,0.05133,97481.0,97479.0,0.41442971]
[1735074205122,0.05133,97481.0,97479.0,0.41366971]
[1735074206129,0.05133,97481.0,97479.0,0.41466971]
[1735074207230,0.051331,97480.0,97479.0,0.42976718]
[1735074217038,0.1521609,97491.0,97479.0,0.42976718]
[1735074217337,0.1521609,97490.0,97479.0,0.42976718]
[1735074218143,0.1521609,97490.0,97479.0,0.37843618]
[1735074218842,0.1521609,97488.0,97479.0,0.37843618]
[1735074220052,0.051323,97494.0,97484.0,0.18361365]
[1735074220234,0.135961,97495.0,97494.0,0.051323]
[1735074220440,0.24351102,97511.0,97494.0,0.412123]
[1735074220646,0.2739499,97517.0,97511.0,0.051314]
[1735074220851,0.1526,97545.0,97514.0,0.051313]
[1735074221032,0.1526,97545.0,97512.0,0.1494]
[1735074221033,0.0513,97538.0,97526.0,0.3608]
[1735074221742,0.16728136,97545.0,97526.0,0.3608]
[1735074221943,0.051302,97535.0,97526.0,0.3608]
[1735074222649,0.10137375,97550.0,97526.0,0.3608]
[1735074222650,0.051292,97554.0,97534.0,0.3608]
[1735074222949,0.051302,97535.0,97534.0,0.3608]
[1735074223147,0.055302,97535.0,97534.0,0.3608]
[1735074223337,0.060302,97535.0,97534.0,0.3608]
[1735074223746,0.056302,97535.0,97534.0,0.3608]
[1735074223946,0.051302,97535.0,97534.0,0.3618]
[1735074225551,0.056302,97535.0,97534.0,0.3618]
[1735074226150,0.060302,97535.0,97534.0,0.3618]
[1735074226837,0.056302,97535.0,97534.0,0.3618]
[1735074227037,0.004,97535.0,97526.0,0.01525296]
[1735074227253,0.060302,97535.0,97534.0,0.001]
[1735074228545,0.051308,97524.0,97520.0,0.52820107]
[1735074228747,0.051308,97524.0,97521.0,0.051309]
[1735074229258,0.051308,97524.0,97522.0,0.051308]
[1735074229661,0.054308,97524.0,97522.0,0.051308]
[1735074230162,0.051308,97524.0,97522.0,0.051308]
[1735074230366,0.056308,97524.0,97522.0,0.051308]
[1735074230552,0.051309,97521.0,97520.0,0.37631832]
[1735074230759,0.051309,97521.0,97520.0,0.37551832]
[1735074231061,0.051309,97521.0,97520.0,0.3608]
[1735074231261,0.051312,97516.0,97505.0,0.18466932]
[1735074231467,0.051317,97506.0,97505.0,0.18466932]
[1735074232165,0.051317,97506.0,97501.0,0.3608]
[1735074232166,0.051319,97502.0,97501.0,0.3608]
[1735074233256,0.051319,97502.0,97501.0,0.0147795]
[1735074233457,0.051312,97516.0,97494.0,0.051323]
[1735074233664,0.051319,97501.0,97500.0,0.10137375]
[1735074233866,0.05132,97500.0,97496.0,0.051322]
[1735074234067,0.002,97502.0,97501.0,0.051319]
[1735074234965,0.003,97502.0,97501.0,0.051319]
[1735074235267,0.005,97502.0,97501.0,0.051319]
[1735074235565,0.052319,97502.0,97501.0,0.051319]
[1735074235770,0.051319,97502.0,97501.0,0.052319]
[1735074236064,0.051316,97508.0,97505.0,0.051317]
[1735074236269,0.051317,97506.0,97505.0,0.3608]
[1735074237074,0.01484548,97526.0,97505.0,0.3608]
[1735074237267,0.051314,97511.0,97508.0,0.051316]
[1735074238064,0.051314,97511.0,97509.0,0.051315]
[1735074238571,0.052314,97511.0,97509.0,0.051315]
[1735074239874,0.055314,97511.0,97509.0,0.051315]
[1735074240371,0.055314,97511.0,97510.0,0.0547]
[1735074242271,0.052314,97511.0,97510.0,0.0547]
[1735074242471,0.055314,97511.0,97510.0,0.0547]
[1735074242676,0.051316,97507.0,97506.0,0.36156]
[1735074242873,0.051316,97507.0,97506.0,0.3608]
[1735074244669,0.056316,97507.0,97506.0,0.3608]
[1735074245377,0.057316,97507.0,97506.0,0.3608]
[1735074246280,0.057316,97507.0,97505.0,0.01548135]
[1735074246469,0.057316,97507.0,97505.0,0.01472135]
[1735074246672,0.051319,97502.0,97501.0,0.051319]
[1735074248073,0.004,97507.0,97497.0,0.36156]
[1735074248274,0.051321,97498.0,97497.0,0.3608]
[1735074248474,0.051321,97498.0,97497.0,0.37595824]
[1735074251490,0.053321,97498.0,97497.0,0.37595824]
[1735074252182,0.055321,97498.0,97497.0,0.37595824]
[1735074255195,0.60398051,97539.0,97497.0,1.03675824]
[1735074255384,0.051306,97527.0,97525.0,0.051307]
[1735074255578,0.60450052,97539.0,97520.0,0.1028]
[1735074255579,0.60398051,97539.0,97520.0,0.1028]
[1735074255779,0.24318051,97539.0,97538.0,0.4121]
[1735074256288,0.24318051,97565.0,97538.0,0.3608]
[1735074256497,0.24318051,97565.0,97529.0,0.2027475]
[1735074256498,0.24318051,97565.0,97564.0,0.051286]
[1735074256696,0.24318051,97565.0,97564.0,0.3608]
[1735074256883,0.24318051,97565.0,97480.0,0.38009865]
[1735074256884,0.051297,97545.0,97541.0,0.051298]
[1735074257082,0.051286,97564.0,97530.0,0.10137375]
[1735074257083,0.3608,97549.0,97535.0,0.3608]
[1735074257383,0.0513,97539.0,97535.0,0.412101]
[1735074257691,0.0533,97539.0,97535.0,0.412101]
[1735074257993,0.0513,97539.0,97538.0,0.3077822]
[1735074258691,0.0513,97539.0,97535.0,0.051301]
[1735074258883,0.0513,97539.0,97536.0,0.051301]
[1735074259782,0.0523,97539.0,97536.0,0.051301]
[1735074260587,0.3608,97569.0,97538.0,0.3608]
[1735074260791,0.3608,97569.0,97559.0,0.10137375]
[1735074260987,0.051289,97559.0,97554.0,0.412091]
[1735074261192,0.051293,97551.0,97543.0,0.051297]
[1735074261391,0.051294,97549.0,97540.0,0.10137375]
[1735074261589,0.051294,97549.0,97544.0,0.051297]
[1735074261796,0.3608,97558.0,97540.0,0.10137375]
[1735074262096,0.051298,97542.0,97540.0,0.10137375]
[1735074262283,0.051298,97542.0,97538.0,0.01485102]
[1735074262483,0.051295,97549.0,97543.0,0.051297]
[1735074262696,0.051295,97549.0,97547.0,0.3608]
[1735074262896,0.051291,97556.0,97547.0,0.3608]
[1735074263191,0.051288,97561.0,97547.0,0.3608]
[1735074263392,0.051288,97561.0,97558.0,0.051289]
[1735074263696,0.051288,97561.0,97560.0,0.051288]
[1735074263994,0.051283,97570.0,97564.0,0.051286]
[1735074264384,0.051283,97570.0,97566.0,0.051285]
[1735074264784,0.051283,97570.0,97568.0,0.051284]
[1735074265380,0.054283,97570.0,97568.0,0.051284]
[1735074265795,0.052283,97570.0,97568.0,0.051284]
[1735074266096,0.003,97570.0,97569.0,0.3608]
[1735074266395,0.051271,97594.0,97569.0,0.5282]
[1735074266588,0.051271,97594.0,97584.0,0.10137375]
[1735074266784,0.412067,97601.0,97584.0,0.10137375]
[1735074266990,0.412067,97601.0,97592.0,0.051271]
[1735074267195,0.3608,97601.0,97590.0,0.10137375]
[1735074267495,0.3608,97601.0,97597.0,0.051269]
[1735074267798,0.051268,97598.0,97597.0,0.051269]
[1735074268188,0.051268,97598.0,97588.0,0.10137375]
[1735074268189,0.3608,97601.0,97592.0,0.001]
[1735074268500,0.102,97600.0,97599.0,0.051268]
[1735074270093,0.1,97600.0,97599.0,0.051268]
[1735074270899,0.1,97600.0,97599.0,0.053268]
[1735074272997,0.1,97600.0,97599.0,0.052268]
[1735074273194,0.101,97600.0,97599.0,0.052268]
[1735074273591,0.101,97600.0,97599.0,0.001]
[1735074273894,0.101,97600.0,97584.0,0.051276]
[1735074273895,0.051274,97587.0,97584.0,0.051276]
[1735074274099,0.3608,97591.0,97580.0,0.10137375]
[1735074274298,0.051275,97585.0,97580.0,0.10137375]
[1735074274605,0.412072,97591.0,97580.0,0.10137375]
[1735074274807,0.051273,97590.0,97585.0,0.051275]
[1735074275708,0.3608,97591.0,97585.0,0.051275]
[1735074275904,0.3608,97591.0,97580.0,0.10137375]
[1735074276206,0.051276,97584.0,97582.0,0.051277]
[1735074276906,0.001,97585.0,97583.0,0.051276]
[1735074277100,0.051274,97588.0,97583.0,0.051276]
[1735074278008,0.001,97585.0,97583.0,0.051276]
[1735074278310,0.003,97585.0,97583.0,0.051276]
[1735074278698,0.001,97585.0,97583.0,0.051276]
[1735074279202,0.054275,97585.0,97583.0,0.051276]
[1735074279506,0.053275,97585.0,97583.0,0.051276]
[1735074280307,0.002,97585.0,97577.0,0.01500722]
[1735074280510,0.412079,97579.0,97577.0,0.01500722]
[1735074281295,0.0553,97578.0,97577.0,0.01500722]
[1735074281501,0.0553,97578.0,97577.0,0.01346988]
[1735074281702,0.0553,97578.0,97567.0,0.051285]
[1735074281906,0.3618,97579.0,97568.0,0.10137375]
[1735074282108,0.001,97579.0,97577.0,0.051279]
[1735074282500,0.051276,97584.0,97577.0,0.001]
[1735074282699,0.051276,97584.0,97582.0,0.051277]
[1735074284006,0.052276,97584.0,97582.0,0.051277]
[1735074284309,0.001,97584.0,97582.0,0.051277]
[1735074284509,0.002,97584.0,97582.0,0.051277]
[1735074285407,0.051273,97589.0,97578.0,0.18398915]
[1735074285712,0.051273,97589.0,97588.0,0.051274]
[1735074286500,0.052273,97589.0,97588.0,0.051274]
[1735074289005,0.051273,97589.0,97588.0,0.06487398]
[1735074294918,0.051277,97582.0,97581.0,0.3077822]
[1735074295503,0.051277,97582.0,97581.0,0.24562264]
[1735074295707,0.051277,97582.0,97581.0,0.25883434]
[1735074296318,0.051277,97582.0,97581.0,0.24562264]
[1735074296817,0.051277,97582.0,97580.0,0.18427682]
[1735074297012,0.0488,97581.0,97580.0,0.18427682]
[1735074298020,0.0488,97581.0,97580.0,0.18527682]
[1735074298221,0.051277,97582.0,97580.0,0.001]
[1735074298423,0.3608,97594.0,97580.0,0.001]
[1735074298620,0.051274,97588.0,97587.0,0.051274]
[1735074300608,0.051271,97594.0,97592.0,0.051271]
[1735074302615,0.051271,97594.0,97593.0,0.18423194]
[1735074303823,0.051271,97594.0,97592.0,0.06553435]
[1735074304010,0.1,97600.0,97592.0,0.01426335]
[1735074304217,0.051268,97599.0,97598.0,0.051268]
[1735074304526,0.051271,97594.0,97593.0,0.001]
[1735074305314,0.051271,97594.0,97593.0,0.01450648]
[1735074305824,0.051271,97594.0,97593.0,0.01350648]
[1735074306024,0.1,97600.0,97591.0,0.24562264]
[1735074306210,0.051272,97592.0,97590.0,0.23554027]
[1735074307531,0.051272,97592.0,97591.0,0.18426727]
[1735074308621,0.3608,97595.0,97589.0,0.01321195]
[1735074308827,0.3608,97595.0,97588.0,0.18426727]
[1735074308828,0.051273,97590.0,97588.0,0.18426727]
[1735074309628,0.051277,97582.0,97581.0,0.18426727]
[1735074310327,0.051277,97582.0,97581.0,0.19750845]
[1735074311219,0.051277,97582.0,97581.0,0.01424118]
[1735074311422,0.18218172,97590.0,97581.0,0.01424118]
[1735074311629,0.051275,97587.0,97586.0,0.051274]
[1735074314633,0.051268,97599.0,97598.0,0.051268]
[1735074316232,0.1,97600.0,97598.0,0.052268]
[1735074318721,0.1,97600.0,97598.0,0.06481815]
[1735074323230,0.051268,97599.0,97598.0,0.001]
[1735074323535,0.051268,97599.0,97589.0,0.18426727]
[1735074323536,0.051273,97590.0,97589.0,0.18426727]
[1735074323836,0.051273,97590.0,97582.0,0.24562264]
[1735074323837,0.051276,97583.0,97582.0,0.24562264]
[1735074324337,0.051278,97579.0,97578.0,0.01297736]
[1735074324537,0.051284,97569.0,97566.0,0.099585]
[1735074324731,0.412084,97569.0,97557.0,0.24562264]
[1735074325238,0.05129,97558.0,97557.0,0.24562264]
[1735074325437,0.41209,97558.0,97557.0,0.24562264]
[1735074325835,0.41209,97558.0,97548.0,0.14797375]
[1735074326024,0.051294,97549.0,97548.0,0.14797375]
[1735074326227,0.051294,97549.0,97548.0,0.0466]
[1735074326734,0.051294,97549.0,97544.0,0.34448]
[1735074327943,0.051294,97549.0,97547.0,0.3648]
[1735074328435,0.051294,97549.0,97547.0,0.37733493]
[1735074328834,0.3608,97548.0,97547.0,0.01653493]
[1735074329634,0.3608,97548.0,97547.0,0.01753493]
[1735074330335,0.058294,97549.0,97547.0,0.01353493]
[1735074330536,0.058294,97549.0,97547.0,0.01753493]
[1735074330938,0.15187716,97565.0,97555.0,0.051291]
[1735074331234,0.07305241,97565.0,97564.0,0.051286]
[1735074332031,0.051284,97570.0,97569.0,0.051284]
[1735074333434,0.059284,97570.0,97569.0,0.052284]
[1735074334647,0.059284,97570.0,97569.0,0.001]
[1735074335642,0.009,97570.0,97569.0,0.001]
[1735074337745,0.009,97570.0,97569.0,0.01323854]
[1735074338045,0.009,97570.0,97569.0,0.001]
[1735074338939,1e-08,97570.0,97569.0,0.001]
[1735074339238,0.051272,97592.0,97590.0,0.051272]
[1735074339946,0.051269,97598.0,97594.0,0.051271]
[1735074340548,0.05127,97596.0,97594.0,0.051271]
[1735074341538,0.05127,97596.0,97594.0,0.001]
[1735074341740,0.05227,97596.0,97594.0,0.001]
[1735074341939,0.001,97596.0,97584.0,0.3608]
[1735074342138,0.001,97596.0,97584.0,0.4059]
[1735074342339,0.051271,97593.0,97591.0,0.051272]
[1735074344549,0.051271,97593.0,97591.0,0.052272]
[1735074345552,0.1,97600.0,97591.0,0.001]
[1735074345848,0.051269,97597.0,97596.0,0.051269]
[1735074347142,0.051269,97597.0,97596.0,0.052269]
[1735074347342,0.052269,97597.0,97596.0,0.052269]
[1735074348948,0.001,97597.0,97596.0,0.052269]
[1735074349855,0.3618,97597.0,97596.0,0.001]
[1735074350353,1.9089,97597.0,97596.0,0.001]
[1735074350956,1.92093963,97597.0,97596.0,0.001]
[1735074351253,0.42093963,97597.0,97596.0,0.001]
[1735074356045,0.42093963,97597.0,97576.0,0.05128]
[1735074356347,0.05128,97577.0,97576.0,0.05128]
[1735074356643,0.051281,97575.0,97574.0,0.3608]
[1735074356843,0.051281,97575.0,97574.0,0.37327346]
[1735074357854,0.051278,97580.0,97579.0,0.051278]
[1735074358057,0.051278,97580.0,97574.0,0.37327346]
[1735074358058,0.36232001,97597.0,97574.0,0.37403346]
[1735074358354,0.051273,97589.0,97587.0,0.051274]
[1735074360062,0.051273,97589.0,97587.0,0.052274]
[1735074360252,0.051273,97589.0,97587.0,0.053274]
[1735074362346,0.051273,97589.0,97587.0,0.06538152]
[1735074362955,0.1,97600.0,97587.0,0.01410752]
[1735074363161,0.1,97600.0,97599.0,0.051268]
[1735074364359,0.1,97600.0,97599.0,0.052268]
[1735074365655,0.1,97600.0,97599.0,0.051268]
[1735074365867,0.101,97600.0,97599.0,0.052268]
[1735074366460,0.1,97600.0,97599.0,0.052268]
[1735074366662,0.101,97600.0,97599.0,0.052268]
[1735074367576,0.05178301,97608.0,97607.0,0.051264]
[1735074367757,0.051263,97608.0,97607.0,0.051264]
[1735074368966,0.052263,97608.0,97607.0,0.051264]
[1735074370571,0.18218172,97621.0,97620.0,0.051257]
[1735074370758,0.2124071,97637.0,97636.0,0.051249]
[1735074370959,0.2124071,97637.0,97636.0,0.412049]
[1735074371262,0.051238,97656.0,97645.0,0.051244]
[1735074371459,0.051238,97656.0,97645.0,0.412044]
[1735074371967,0.051238,97656.0,97653.0,0.051239]
[1735074373268,0.051238,97656.0,97653.0,0.052239]
[1735074373471,0.051238,97656.0,97654.0,0.051239]
[1735074374962,0.051238,97656.0,97654.0,0.052239]
[1735074375176,0.051238,97656.0,97654.0,0.053239]
[1735074376662,0.051238,97656.0,97654.0,0.002]
[1735074376862,0.051238,97656.0,97645.0,0.3608]
[1735074377062,0.05125,97634.0,97617.0,0.24525043]
[1735074377370,0.051258,97619.0,97617.0,0.24525043]
[1735074377769,0.051258,97619.0,97617.0,0.25712855]
[1735074378373,0.051258,97619.0,97617.0,0.01187812]
[1735074378563,0.4553,97633.0,97612.0,0.051261]
[1735074378765,0.051262,97611.0,97610.0,0.10137375]
[1735074378967,0.051262,97611.0,97609.0,0.3608]
[1735074379469,0.051262,97611.0,97609.0,0.37285039]
[1735074379671,0.3608,97623.0,97609.0,0.37285039]
[1735074379876,0.3608,97623.0,97618.0,0.051258]
[1735074380567,0.3608,97623.0,97621.0,0.051256]
[1735074380763,0.3608,97633.0,97631.0,0.051251]
[1735074380963,0.10137375,97670.0,97617.0,0.3608]
[1735074380964,0.0474,97648.0,97626.0,0.3608]
[1735074381160,0.051246,97642.0,97639.0,0.10137375]
[1735074381877,0.051246,97641.0,97639.0,0.15262075]
[1735074382174,0.099643,97648.0,97637.0,0.3608]
[1735074382367,0.099643,97648.0,97637.0,0.37262856]
[1735074382588,0.099643,97648.0,97639.0,0.051247]
[1735074382775,0.099643,97648.0,97638.0,0.10137375]
[1735074382975,0.099643,97648.0,97646.0,0.051243]
[1735074383571,0.0474,97648.0,97646.0,0.051243]
[1735074385076,0.0474,97648.0,97646.0,0.052243]
[1735074385866,0.0474,97648.0,97646.0,0.001]
[1735074386181,0.051243,97647.0,97646.0,0.001]
[1735074388079,0.0474,97648.0,97647.0,0.051243]
[1735074389973,0.0474,97648.0,97647.0,0.052243]
[1735074391578,0.098642,97648.0,97647.0,0.001]
[1735074391786,0.05125,97634.0,97627.0,0.051253]
[1735074392082,0.09955,97633.0,97627.0,0.06286591]
[1735074392476,0.051252,97630.0,97627.0,0.06286591]
[1735074392977,0.051252,97630.0,97627.0,0.06386591]
[1735074393185,0.051252,97630.0,97628.0,0.051253]
[1735074393481,0.412046,97641.0,97628.0,0.051253]
[1735074393684,0.412046,97641.0,97635.0,0.051249]
[1735074393685,0.051247,97640.0,97635.0,0.051249]
[1735074393885,0.051247,97640.0,97637.0,0.051248]
[1735074394585,0.3608,97641.0,97637.0,0.051248]
[1735074394784,0.051247,97639.0,97637.0,0.051248]
[1735074395191,0.051247,97639.0,97637.0,0.052248]
[1735074395582,0.051247,97639.0,97637.0,0.051248]
[1735074395781,0.051247,97639.0,97637.0,0.052248]
[1735074396187,0.051247,97639.0,97637.0,0.051248]
[1735074396487,0.3608,97638.0,97612.0,0.24525043]
[1735074396686,0.051261,97613.0,97612.0,0.24525043]
[1735074396987,0.051261,97613.0,97612.0,0.25701103]
[1735074397286,0.051261,97613.0,97612.0,0.0117606]
[1735074397473,0.051262,97610.0,97608.0,0.3608]
[1735074397678,0.051262,97610.0,97608.0,0.412063]
[1735074398078,0.3608,97620.0,97608.0,0.3608]
[1735074398278,0.051259,97616.0,97613.0,0.05126]
[1735074399491,0.05126,97615.0,97613.0,0.05126]
[1735074399979,0.05126,97615.0,97613.0,0.05426]
[1735074400591,0.05126,97615.0,97613.0,0.004]
[1735074402692,0.0889,97614.0,97595.0,0.60605043]
[1735074402887,0.051266,97603.0,97595.0,0.60605043]
[1735074403095,0.3608,97596.0,97595.0,0.24525043]
[1735074403794,0.3608,97596.0,97595.0,0.24925043]
[1735074404290,0.3608,97596.0,97580.0,0.36871564]
[1735074404291,0.6608,97596.0,97580.0,0.00084]
[1735074404589,0.412077,97581.0,97578.0,9.776e-05]
[1735074404783,0.051278,97579.0,97578.0,9.776e-05]
[1735074405984,0.00052001,97581.0,97579.0,0.051278]
[1735074406183,0.051275,97586.0,97580.0,0.051278]
[1735074406589,0.051275,97586.0,97581.0,0.051277]
[1735074406793,0.3608,97596.0,97578.0,9.776e-05]
[1735074406988,0.051269,97597.0,97590.0,0.051272]
[1735074407185,0.051269,97597.0,97589.0,0.3608]
[1735074407394,0.051269,97597.0,97594.0,0.05127]
[1735074408197,0.060269,97597.0,97594.0,0.05127]
[1735074408688,0.060269,97597.0,97594.0,0.05227]
[1735074409797,0.000269,97597.0,97594.0,0.05227]
[1735074409984,0.3608,97596.0,97594.0,0.001]
[1735074410189,0.051277,97581.0,97580.0,0.3608]
[1735074410794,0.051277,97581.0,97574.0,0.00153732]
[1735074410992,0.051278,97580.0,97574.0,0.00153732]
[1735074411703,0.051278,97580.0,97566.0,0.0481]
[1735074412006,0.051278,97580.0,97578.0,0.00109776]
[1735074415695,0.412078,97580.0,97578.0,0.00109776]
[1735074416001,0.412078,97580.0,97551.0,0.3608]
[1735074416002,0.412078,97580.0,97547.0,0.051295]
[1735074416298,0.051291,97556.0,97547.0,0.051295]
[1735074416702,0.0944,97567.0,97545.0,0.10743168]
[1735074417003,0.00012242,97566.0,97549.0,0.3608]
[1735074418001,0.051294,97550.0,97549.0,0.3608]
[1735074418203,0.051294,97550.0,97549.0,0.3618]
[1735074419102,0.051294,97550.0,97549.0,0.3678]
[1735074420893,0.00012242,97566.0,97549.0,0.3678]
[1735074421100,0.00012242,97566.0,97564.0,0.051286]
[1735074421504,0.3608,97580.0,97578.0,0.051278]
[1735074421694,0.3608,97580.0,97561.0,0.0451]
[1735074421695,0.051276,97584.0,97582.0,0.051277]
[1735074422911,0.001,97584.0,97582.0,0.051277]
[1735074423301,0.001,97584.0,97582.0,0.06274922]
[1735074423501,0.001,97584.0,97582.0,0.10784922]
[1735074423702,0.001,97584.0,97582.0,0.10884922]
[1735074423901,0.3608,97615.0,97614.0,0.05126]
[1735074424103,0.00052001,97627.0,97608.0,0.3608]
[1735074424302,0.051252,97630.0,97627.0,0.051253]
[1735074425208,0.051252,97630.0,97626.0,0.3608]
[1735074425404,0.051252,97630.0,97628.0,0.051252]
[1735074425612,0.006,97630.0,97628.0,0.051252]
[1735074425804,0.60451631,97653.0,97629.0,0.3608]
[1735074425805,0.051244,97645.0,97629.0,0.3608]
[1735074426002,0.051244,97645.0,97642.0,0.3608]
[1735074426403,0.3608,97653.0,97635.0,0.15143334]
[1735074426708,0.051246,97641.0,97637.0,0.3608]
[1735074427098,0.3608,97653.0,97635.0,0.20268234]
[1735074427307,0.051248,97638.0,97635.0,0.20268234]
[1735074427504,0.051248,97638.0,97635.0,0.052249]
[1735074427703,0.3608,97653.0,97635.0,0.001]
[1735074428010,0.3608,97653.0,97637.0,0.001]
[1735074428511,0.051246,97641.0,97637.0,0.001]
[1735074429311,0.051246,97641.0,97634.0,0.05125]
[1735074429508,0.051246,97641.0,97635.0,0.001]
[1735074430017,0.051246,97641.0,97637.0,0.001]
[1735074431013,0.051247,97639.0,97637.0,0.001]
[1735074431603,1.5,97638.0,97637.0,0.001]
[1735074432410,1.5,97638.0,97622.0,0.01166407]
[1735074432411,1.5,97638.0,97635.0,0.001]
[1735074433909,0.051254,97626.0,97620.0,0.16248888]
[1735074434115,0.051255,97624.0,97620.0,0.16248888]
[1735074435307,0.051255,97624.0,97620.0,0.16348888]
[1735074435710,0.051255,97624.0,97620.0,0.16448888]
[1735074436115,0.051255,97623.0,97620.0,0.16448888]
[1735074436605,0.051256,97622.0,97620.0,0.16448888]
[1735074437007,0.051256,97622.0,97620.0,0.01305554]
[1735074437205,0.051256,97622.0,97620.0,0.01205554]
[1735074437406,0.051256,97622.0,97620.0,0.01305554]
[1735074437904,0.051256,97622.0,97620.0,0.01205554]
[1735074438106,0.051256,97622.0,97620.0,0.01305554]
[1735074439418,0.051256,97622.0,97620.0,0.01205554]
[1735074439709,0.051256,97622.0,97620.0,0.01305554]
[1735074440507,0.051256,97622.0,97620.0,0.06431254]
[1735074444523,0.0471,97639.0,97620.0,0.01305554]
[1735074444718,0.051252,97630.0,97629.0,0.10080399]
[1735074444918,0.051253,97628.0,97627.0,0.051253]
[1735074446828,0.05125,97634.0,97632.0,0.05125]
[1735074447015,0.051247,97640.0,97636.0,0.051248]
[1735074447213,0.36136001,97642.0,97640.0,0.051246]
[1735074447416,0.05124,97652.0,97636.0,0.3608]
[1735074447612,0.0446,97670.0,97651.0,0.3608]
[1735074447812,0.0473,97669.0,97664.0,0.051234]
[1735074448323,0.051234,97665.0,97663.0,0.3608]
[1735074449219,0.051234,97665.0,97664.0,0.001]
[1735074450618,0.051229,97674.0,97664.0,0.051234]
[1735074450934,0.051229,97674.0,97666.0,0.051232]
[1735074451831,0.3608,97667.0,97631.0,0.00153626]
[1735074452018,0.051245,97642.0,97640.0,0.3175573]
[1735074452331,0.051245,97642.0,97640.0,0.30656303]
[1735074453335,0.3608,97653.0,97636.0,0.37268475]
[1735074453336,0.051247,97640.0,97636.0,0.37268475]
[1735074453524,0.051247,97639.0,97636.0,0.01112475]
[1735074453834,0.05125,97633.0,97631.0,0.00153626]
[1735074454933,0.0463,97652.0,97631.0,0.00153626]
[1735074455231,0.3608,97653.0,97643.0,0.3608]
[1735074455531,0.3608,97653.0,97649.0,0.051242]
[1735074455830,0.3608,97653.0,97651.0,0.051241]
[1735074456023,0.051236,97661.0,97654.0,0.051239]
[1735074456330,0.051236,97661.0,97656.0,0.051238]
[1735074456720,0.406,97673.0,97652.0,0.3608]
[1735074456925,0.051232,97669.0,97663.0,0.10080399]
[1735074458234,0.051232,97669.0,97661.0,0.051235]
[1735074458529,0.051235,97663.0,97655.0,0.051238]
[1735074458734,0.051235,97663.0,97652.0,0.3608]
[1735074458735,0.051235,97663.0,97659.0,0.15107895]
[1735074459333,0.051235,97663.0,97661.0,0.001]
[1735074459519,0.051226,97679.0,97671.0,0.05123]
[1735074459835,0.3608,97693.0,97671.0,0.3608]
[1735074460036,0.05122,97691.0,97671.0,0.3608]
[1735074460335,0.051227,97678.0,97671.0,0.3608]
[1735074461039,0.051227,97678.0,97672.0,0.051229]
[1735074462726,0.3608,97693.0,97672.0,0.052229]
[1735074462933,0.051228,97676.0,97672.0,0.052229]
[1735074465036,0.051228,97676.0,97672.0,0.051229]
[1735074465337,0.051228,97676.0,97672.0,0.052229]
[1735074465637,0.051228,97676.0,97672.0,0.051229]
[1735074465838,0.051228,97676.0,97672.0,0.052229]
[1735074467537,0.051228,97676.0,97672.0,0.053229]
[1735074468142,0.051228,97676.0,97672.0,0.052229]
[1735074468833,0.051228,97676.0,97672.0,0.051229]
[1735074469134,0.051228,97676.0,97672.0,0.052229]
[1735074471633,0.3608,97693.0,97678.0,0.051226]
[1735074471837,0.051224,97683.0,97680.0,0.15107895]
[1735074472037,0.051223,97684.0,97678.0,0.051226]
[1735074472532,0.051223,97684.0,97673.0,0.15107895]
[1735074472838,0.051223,97684.0,97679.0,0.051226]
[1735074473030,0.051223,97684.0,97680.0,0.001]
[1735074473432,0.051224,97683.0,97680.0,0.001]
[1735074473828,0.3608,97693.0,97680.0,0.001]
[1735074474033,0.051225,97682.0,97680.0,0.15207895]
[1735074474236,0.051225,97682.0,97680.0,0.001]
[1735074474539,0.051225,97682.0,97679.0,0.051226]
[1735074474734,0.051225,97681.0,97679.0,0.051226]
[1735074475238,0.051225,97681.0,97680.0,0.001]
[1735074475638,0.051225,97681.0,97679.0,0.051226]
[1735074475943,0.051225,97681.0,97679.0,0.052226]
[1735074476132,0.051225,97681.0,97679.0,0.051226]
[1735074476332,0.051225,97681.0,97679.0,0.052226]
[1735074482852,0.3608,97693.0,97680.0,0.3608]
[1735074482853,0.051219,97693.0,97680.0,0.3608]
[1735074483140,0.051221,97689.0,97684.0,0.051223]
[1735074483342,0.10070141,97694.0,97680.0,0.3616]
[1735074483539,0.051225,97681.0,97680.0,0.051225]